Cogmind - Beta 13 @@@ ROGUE MODE // 2024.04.13 @ 01:27:50 Player: Cheeriohz Result: Destroyed by B-74 Champion with Powered Hammer Performance ------------- Evolutions (9) 4500 Regions Visited (26) 5200 Robots Destroyed (180) 900 Value Destroyed (7039) 7039 Prototype IDs (81) 1620 Alien Tech Used (19) 3800 Bonus (6291) 6291 TOTAL SCORE: 29350 Bonus ------- High Alert Combat Kills 614 Follower Combat Kills 422 Met Data Miner 300 Met Zhirov 300 Met Warlord at Base 500 MAIN.C Attacked Warlord 500 Warlord Defense Kills 1468 Met Warlord at Research 2000 Scanned by Researcher 500 Friendly Fire -313 Cogmind --------- Core Integrity 0/1600 Matter 300/300 Energy 100/100 System Corruption 0% Temperature Cool (0) Movement Flying (35) Location -1/Access Parts ------- > --- POWER (2) -------- (None) > --- PROPULSION (7) --- Cooled Impulse Thruster > --- UTILITY (14) ----- Enhanced Optical Array Experimental Signal Interpreter > --- WEAPON (3) ------- (None) > --- INVENTORY (7) ---- Subatomic Replicator Peak State ------------ > --- POWER ------------ Matter Drive > --- PROPULSION ------- Field Propulsion Array Cooled Impulse Thruster Impulse Thruster Array Cooled Q-thruster Experimental Q-thruster > --- UTILITY ---------- Experimental Power Amplifier Advanced Heat Sink Structural Scanner Enhanced Optical Array Experimental Signal Interpreter Advanced Targeting Computer Advanced Melee Analysis Suite Advanced Melee Analysis Suite Advanced Melee Analysis Suite Light Regenerative Plating Microwarp Drive > --- WEAPON ----------- Sigix Broadsword Lance > --- INVENTORY -------- Light Fission Core Light Antimatter Reactor Improved Diametric Drive Medium Regenerative Plating Subatomic Replicator Enhanced Nova Cannon Gamma Bomb Array [Rating: 206] Favorites ----------- Power Light Fission Core Engine Subdweller Power Source Power Core Light Fission Core Reactor Light Antimatter Reactor Propulsion Flightbrick Treads Light Treads Leg Aluminum Leg Wheel Subdweller Monowheel Hover Unit Improved Gyrokinetic Inverter Flight Unit Flightbrick Utility Advanced Hacking Suite Device Advanced Sensor Array Storage Small Storage Unit Processor Enhanced Optical Array Hackware Advanced Hacking Suite Protection Improved Light Armor Plating Artifact Microwarp Drive Weapon Great Axe Energy Gun Subdweller Laser Energy Cannon Subdweller Beam Cannon Ballistic Gun Enhanced Autogun Ballistic Cannon Heavy Autocannon Launcher Heavy Missile Launcher Slashing Weapon Great Axe Piercing Weapon Plasma Lance Build | -11 -10 -10 -8 -8 -8 -6 -6 -6 -6 -5 -5 -5 -5 -5 -4 -4 -4 -4 -4 -3 -3 -3 -2 -2 -2 -1 ------- Run | Yrd Mat Sub Mat Sto Rec Fac Low Low Dat Pro Fac Upp Upp Zhi Pro Fac Upp Upp War Pro Res Qua Res Tes Sec Acc Slots Evolved 18 | . . . 4 . . 4 . . . . 2 . . . . 2 . . . . 2 . 2 . . 2 Power 1 | . . . . . . . . . . . 1 . . . . . . . . . . . . . . . Propulsion 5 | . . . 2 . . 2 . . . . . . . . . . . . . . 1 . . . . . Utility 12 | . . . 2 . . 2 . . . . 1 . . . . 2 . . . . 1 . 2 . . 2 Weapon . | . . . . . . . . . . . . . . . . . . . . . . . . . . . Parts Attached 349 | . 3 26 24 9 13 15 1 4 . . 7 6 7 9 2 27 5 4 32 7 14 18 54 14 28 20 Power 38 | . 1 3 1 2 1 . . . . . 3 . . 2 . 4 1 1 6 1 2 2 2 . 3 3 Engine 7 | . 1 3 1 . . . . . . . . . . . . . . . . . . . . . . 2 Core 15 | . . . . 2 1 . . . . . 3 . . 1 . 2 . 1 3 . . . 1 . 1 . Reactor 16 | . . . . . . . . . . . . . . 1 . 2 1 . 3 1 2 2 1 . 2 1 Propulsion 55 | . . 9 8 . 6 1 . . . . . . . 2 . 1 . . 1 . 5 5 10 1 2 4 Treads 11 | . . 2 7 . 2 . . . . . . . . . . . . . . . . . . . . . Leg 3 | . . . . . . . . . . . . . . . . . . . . . . . 3 . . . Wheel 9 | . . 7 1 . . . . . . . . . . . . . . . . . . 1 . . . . Hover 2 | . . . . . . . . . . . . . . . . . . . . . . 1 1 . . . Flight 30 | . . . . . 4 1 . . . . . . . 2 . 1 . . 1 . 5 3 6 1 2 4 Utility 149 | . 2 4 4 3 4 12 1 3 . . 1 1 3 5 . 16 2 2 17 2 5 6 26 5 17 8 Device 70 | . 1 1 1 1 . 6 1 3 . . . 1 1 2 . 9 2 2 8 2 2 1 13 2 6 5 Storage 5 | . 1 1 . . 1 . . . . . . . . 1 . . . . 1 . . . . . . . Processor 31 | . . . 2 . 1 3 . . . . . . 1 . . 3 . . 3 . 1 2 11 1 3 . Hackware 11 | . . . . . . 2 . . . . 1 . 1 1 . 2 . . 1 . . . 1 . . 2 Protection 22 | . . 2 1 2 2 1 . . . . . . . 1 . 2 . . 4 . 2 1 1 2 1 . Artifact 10 | . . . . . . . . . . . . . . . . . . . . . . 2 . . 7 1 Weapon 107 | . . 10 11 4 2 2 . 1 . . 3 5 4 . 2 6 2 1 8 4 2 5 16 8 6 5 Energy Gun 10 | . . 6 1 . . . . . . . . 1 . . . . . . 1 . . 1 . . . . Energy Cannon 35 | . . 1 . . . . . . . . 1 2 2 . 1 1 1 1 1 3 1 1 11 3 3 2 Ballistic Gun 12 | . . 1 6 3 1 1 . . . . . . . . . . . . . . . . . . . . Ballistic Cannon 1 | . . . . . . . . . . . . . . . . . . . 1 . . . . . . . Launcher 26 | . . 2 4 1 . . . 1 . . 2 2 2 . 1 3 1 . 2 . . 1 1 1 . 2 Special Weapon . | . . . . . . . . . . . . . . . . . . . . . . . . . . . Impact Weapon . | . . . . . . . . . . . . . . . . . . . . . . . . . . . Slashing Weapon 8 | . . . . . 1 1 . . . . . . . . . . . . 1 . . 2 3 . . . Piercing Weapon 15 | . . . . . . . . . . . . . . . . 2 . . 2 1 1 . 1 4 3 1 Special Melee Weapon . | . . . . . . . . . . . . . . . . . . . . . . . . . . . Unidentified Prototypes 53 | . . . 2 . 1 . . . . . 1 . . 4 . . . 1 15 . 3 7 5 4 10 . Corrupted Parts 7 | . . . . . 3 . . . . . . . . . . . . . 3 1 . . . . . . System Corruption 32 | . . . . . 12 . . . . . . . . . . . . . 14 6 . . . . . . Parts Lost 64 | . . . 2 2 1 . . . . . . 3 1 . . 3 . . . . 13 11 2 . 5 21 Power 7 | . . . . 1 . . . . . . . . . . . 1 . . . . 2 . . . 1 2 Propulsion 16 | . . . 1 1 1 . . . . . . . . . . . . . . . 5 3 . . . 5 Utility 33 | . . . 1 . . . . . . . . 3 1 . . 2 . . . . 4 6 2 . 3 11 Weapon 8 | . . . . . . . . . . . . . . . . . . . . . 2 2 . . 1 3 Highest Loss Streak 21 | . . . 1 2 1 . . . . . . 3 1 . . 2 . . . . 7 6 1 . 2 21 To Critical Strikes 1 | . . . . . . . . . . . . . . . . . . . . . 1 . . . . . Average Slot Usage (%) 81 | . 93 88 94 98 99 80 82 82 82 82 83 82 73 83 83 82 73 72 73 75 79 44 73 86 84 64 Engine 3 | . 14 14 9 7 . . . . . . . . . . . . . . . . . . . . . . Core 4 | . . . . 1 9 5 5 5 5 5 10 10 10 11 11 8 5 5 4 5 3 . 3 4 3 . Reactor 1 | . . . . . . . . . . . . . . . . 1 5 5 5 5 4 . 3 4 4 2 Treads 4 | . . 3 28 34 32 . . . . . . . . . . . . . . . . . . . . . Leg 1 | . 28 2 . . . . . . . . . . . . . . . . . . . . 1 . . . Wheel 3 | . . 21 4 . . . . . . . . . . . . . . . . . . . . . . . Flight 9 | . . . . . 3 16 17 17 17 17 15 15 15 16 16 14 10 10 10 10 12 2 16 20 19 15 Device 9 | . 7 2 6 6 . 11 16 17 17 17 15 15 15 14 11 10 10 10 9 9 9 2 11 24 16 7 Storage 4 | . 14 4 9 9 9 5 5 5 5 5 5 5 5 5 5 5 5 5 5 5 3 . . . . . Processor 12 | . . . 8 9 15 15 11 11 11 11 10 9 6 11 11 8 15 15 15 15 13 20 25 20 25 20 Hackware 7 | . . . . . . 6 11 11 11 11 14 13 6 12 16 20 15 15 15 15 12 6 1 . . 3 Protection 4 | . . 9 8 11 11 5 . . . . . . . . . 4 . . . . 4 2 1 4 4 5 Energy Gun 2 | . 14 11 . 2 . . . . . . . . . . . . . . 3 . . . . . . . Energy Cannon 1 | . . 9 4 . . . . . . . . 1 1 . 1 . . . . . . . 1 1 . . Ballistic Gun 3 | . 14 6 12 15 17 5 5 4 . . . . . . . . . . . . . . . . . . Slashing Weapon 2 | . . . . . . 5 5 5 5 5 5 5 5 5 5 4 . . . 5 3 . 3 4 3 . Piercing Weapon 2 | . . . . . . . . . . . . . . . . 2 5 5 5 5 8 3 . 2 3 2 Naked Turns . | . . . . . . . . . . . . . . . . . . . . . . . . . . . Heaviest Build 59 | 10 28 37 42 42 38 28 26 26 26 26 35 35 35 32 34 40 34 34 48 37 42 27 53 59 49 55 Greatest Support 86 | 20 20 40 86 86 82 34 29 29 29 29 34 34 34 36 36 42 39 39 40 40 49 16 75 60 57 51 Greatest Overweight (x) 2 | . 1 1 2 . 2 . . . . . 1 1 1 . . . . . 1 . 1 2 1 1 . 1 Average Overweight (x) . | . . . 1 . . . . . . . . . . . . . . . . . . . . . . . Largest Inventory Capacity 15 | 8 15 15 15 15 15 8 8 8 8 8 8 8 8 8 8 8 8 8 8 8 8 5 5 5 7 7 Average Capacity 8 | 8 9 7 15 15 14 8 8 8 8 8 8 8 8 8 8 8 8 8 8 8 7 5 5 5 5 7 Most Carried 15 | 6 8 15 15 15 15 8 8 8 8 8 8 8 8 8 8 8 8 8 8 8 8 5 5 5 7 7 Average Carried 8 | 6 7 7 14 14 14 7 7 7 8 8 7 7 7 7 8 7 7 7 7 7 6 4 4 4 5 5 Final Capacity 15 | 8 15 15 15 15 8 8 8 8 8 8 8 8 8 8 8 8 8 8 8 8 5 5 5 5 7 7 Final Carried 15 | 6 8 15 15 15 8 8 8 8 8 8 8 7 8 8 8 8 8 8 8 7 5 5 5 5 6 1 Class Distribution -------------------- 34% | Hacker-Scout 17% | Mutant 9% | Subdweller-Mutant 5% | Scavenger-Mutant 5% | Hacker-Sprinter 5% | Sprinter 4% | Scavenger-Scout 3% | Ninja Dominant Class ---------------- Mutant | -10/Materials Subdweller-Mutant | -10/Subcaves Mutant | -8/Materials Mutant | -8/Storage Scavenger-Mutant | -8/Recycling Mutant | -6/Factory Hacker-Scout | -6/Lower Caves Hacker-Scout | -6/Lower Caves Hacker-Scout | -6/Data Miner Hacker-Scout | -5/Proximity Caves Hacker-Scout | -5/Factory Hacker-Scout | -5/Upper Caves Sprinter | -5/Upper Caves Hacker-Sprinter | -5/Zhirov Hacker-Sprinter | -4/Proximity Caves Hacker-Scout | -4/Factory Hacker-Scout | -4/Upper Caves Hacker-Scout | -4/Upper Caves Hacker-Scout | -4/Warlord Hacker-Scout | -3/Proximity Caves Hacker-Scout | -3/Research Hacker-Scout | -3/Quarantine Scavenger-Scout | -2/Research Scavenger-Ninja | -2/Testing Ninja | -2/Section 7 Mutant | -1/Access Resources | -11 -10 -10 -8 -8 -8 -6 -6 -6 -6 -5 -5 -5 -5 -5 -4 -4 -4 -4 -4 -3 -3 -3 -2 -2 -2 -1 ----------- Run | Yrd Mat Sub Mat Sto Rec Fac Low Low Dat Pro Fac Upp Upp Zhi Pro Fac Upp Upp War Pro Res Qua Res Tes Sec Acc Matter Collected 5329 | 200 30 354 548 669 328 171 17 40 . 7 93 75 71 . 203 346 276 40 499 18 174 169 476 45 414 66 Remotely . | . . . . . . . . . . . . . . . . . . . . . . . . . . . Salvage Created 6850 | . 92 418 773 756 381 186 . . . . 192 41 140 . 203 726 63 40 239 . 201 566 782 125 415 511 Parts 388 | . 8 29 59 41 32 27 . . . . 8 2 10 . 18 34 . 4 3 . 13 22 27 8 10 33 Haulers Intercepted 13 | . . . 3 1 . . . . . . 2 . . . . 2 . . . . . . 3 . 2 . Recyclers Shooed 6 | . . . 1 . 5 . . . . . . . . . . . . . . . . . . . . . Parts Field Recycled . | . . . . . . . . . . . . . . . . . . . . . . . . . . . Retrieved Matter . | . . . . . . . . . . . . . . . . . . . . . . . . . . . Parts Self-Destructed 45 | . . 20 . . . . . . . . . . 8 . 16 . . 1 . . . . . . . . Prevented 1 | . . . . . . . . . . . . . 1 . . . . . . . . . . . . . Kills | -11 -10 -10 -8 -8 -8 -6 -6 -6 -6 -5 -5 -5 -5 -5 -4 -4 -4 -4 -4 -3 -3 -3 -2 -2 -2 -1 ------- Run | Yrd Mat Sub Mat Sto Rec Fac Low Low Dat Pro Fac Upp Upp Zhi Pro Fac Upp Upp War Pro Res Qua Res Tes Sec Acc Combat Hostiles Destroyed 117 | . 2 13 20 14 5 2 . . . . . . 6 . 7 13 6 . 10 . 2 1 5 . 1 10 Melee 29 | . . . . . . 2 . . . . . . . . 3 10 1 . . . 2 1 3 . 1 6 Guns 30 | . 2 5 7 11 5 . . . . . . . . . . . . . . . . . . . . . Cannons 7 | . . 4 2 . . . . . . . . . . . . . . . . . . . 1 . . . AOE 49 | . . 3 11 3 . . . . . . . . 6 . 4 3 5 . 10 . . . . . . 4 Classes Destroyed 23 | . 2 3 5 3 2 1 . . . . . 1 . . 1 . 1 1 2 . . . . . . 1 Worker 6 | . . . 4 . . 1 . . . . . . . . . . . . . . . . . . . 1 Builder 12 | . 1 . 1 1 3 3 . . . . . . . . . . . . . . 1 1 . 1 . . Hauler 13 | . . . 3 1 . . . . . . 2 . . . . 2 . . . . . . 3 . 2 . Recycler 5 | . . . . . 2 . . . . . . . . . . . . . . . . 3 . . . . Mechanic 2 | . . . . 2 . . . . . . . . . . . . . . . . . . . . . . Operator 6 | . . . . . . 1 . . . . . . . . . 1 . . . . . . 2 . 1 1 Drone 1 | . . . . . . . . . . . . . . . 1 . . . . . . . . . . . Turret 2 | . . 2 . . . . . . . . . . . . . . . . . . . . . . . . Watcher 14 | . . . 2 . . 1 . . . . 1 . . . . 2 . . . . 1 1 1 1 3 1 Swarmer 30 | . . 4 4 . . 2 . . . . . . 4 . 4 5 1 . . . . 1 . . . 5 Cutter 4 | . . . . . . . . . . . . . . . . . . . . . . . . . . 4 Grunt 41 | . 2 . 11 10 . . . . . . . . 2 . . 4 1 . 8 . . . 3 . . . Brawler 1 | . . . . . . . . . . . . . . . . . 1 . . . . . . . . . Duelist 3 | . . . . 1 . . . . . . . . . . . . 1 . . . . . 1 . . . Protector 3 | . . . . 1 2 . . . . . . . . . . . . . . . . . . . . . Researcher 3 | . . . . . . . . . . . . . . . . . . 1 . . . 1 . 1 . . Sentry 10 | . . . 4 2 2 . . . . . . . . . . . 1 . . . . . 1 . . . Specialist 1 | . . . . . . . . . . . . . . . . . . . 1 . . . . . . . Hunter 2 | . . . 1 . . . . . . . . . . . . . 1 . . . . . . . . . Programmer 11 | . . . . . 1 . . . . . . . . . 2 4 . . . . 2 . . . 1 1 Striker 1 | . . . . . . . . . . . . . . . . . . . 1 . . . . . . . Subdweller 9 | . . 9 . . . . . . . . . . . . . . . . . . . . . . . . Samaritan 2 | . . . . . . . . . . . . 1 . . 1 . . . . . . . . . . . Best Kill Streak 10 | . 2 5 9 6 2 2 . . . . 1 . 4 . 4 6 5 . 10 . 2 2 3 1 2 7 Combat Bots Only 10 | . 2 3 6 5 2 2 . . . . . . 4 . 4 5 5 . 10 . 2 1 3 . 1 7 Max Kills in Single Turn 4 | . 1 2 3 4 1 1 . . . . 1 1 4 . 3 2 2 1 4 . 1 1 1 1 1 2 Gunslinging 1 | . . . . 1 . . . . . . . . . . . . . . . . . . . . . . Exploded 4 | . . 2 2 3 . . . . . . . . 4 . 3 2 2 . 4 . . . . . . 2 Melee 1 | . . . . . . 1 . . . . . . . . 1 1 1 . . . 1 1 1 . 1 1 Uniques/NPCs Destroyed . | . . . . . . . . . . . . . . . . . . . . . . . . . . . Combat | -11 -10 -10 -8 -8 -8 -6 -6 -6 -6 -5 -5 -5 -5 -5 -4 -4 -4 -4 -4 -3 -3 -3 -2 -2 -2 -1 -------- Run | Yrd Mat Sub Mat Sto Rec Fac Low Low Dat Pro Fac Upp Upp Zhi Pro Fac Upp Upp War Pro Res Qua Res Tes Sec Acc Hostile Shots Fired 1230 | . 5 54 97 72 10 20 . . . . 3 . 5 . 9 87 46 . 10 . 122 147 37 3 91 412 Missed 450 | . 1 19 36 22 2 9 . . . . 2 . 4 . 3 37 20 . 3 . 45 61 15 1 50 120 Damage Taken 14507 | . 42 638 950 787 115 155 . . . . 25 367 54 . 98 1068 575 . 400 . 1728 1451 580 134 1685 3655 Core 3767 | . 10 34 79 101 41 18 . . . . 25 60 11 . 12 101 114 . . . 332 675 78 . 456 1620 Absorbed by Shields 51 | . . . . 51 . . . . . . . . . . . . . . . . . . . . . . Redirected to Core 5 | . . . . . . . . . . . . . . . . . . . . . . 5 . . . . Ignored by Resistances 266 | . . . . 111 2 . . . . . . . . . . . . . . . . . . . 63 90 Regen/Repaired (Parts) 853 | . . . . . . . . . . . . . . . . . . . 83 . . . 366 5 212 187 Core Remaining (%) 72 | 100 . 82 . . 59 . . . . 97 . . . . 89 . . . . 81 . 14 . . 55 . Volleys Fired 391 | . 6 63 62 51 27 . . . . 3 2 24 11 . 30 17 19 3 9 9 4 . 23 19 4 5 Largest 2 | . 2 2 2 2 2 . . . . 1 1 1 1 . 1 1 1 1 1 1 1 . 1 1 1 1 Hottest 225 | . 60 140 108 60 50 . . . . 40 90 225 90 . 90 90 90 90 49 90 90 . 120 120 120 120 Shots Fired 548 | . 12 104 107 89 54 . . . . 3 2 24 11 . 30 17 19 3 9 9 4 . 23 19 4 5 Gun 313 | . 12 78 77 87 54 . . . . . . 4 . . . . . . 1 . . . . . . . Cannon 174 | . . 21 13 . . . . . . . 2 20 7 . 28 13 7 3 . 9 4 . 23 17 4 3 Launcher 61 | . . 5 17 2 . . . . . 3 . . 4 . 2 4 12 . 8 . . . . 2 . 2 Special . | . . . . . . . . . . . . . . . . . . . . . . . . . . . Kinetic 237 | . 6 8 88 78 54 . . . . 3 . . . . . . . . . . . . . . . . Thermal 270 | . 6 94 14 11 . . . . . . 2 24 7 . 28 13 7 3 1 9 4 . 23 17 4 3 Explosive 37 | . . 2 5 . . . . . . . . . 4 . 2 4 12 . 8 . . . . . . . Electromagnetic 4 | . . . . . . . . . . . . . . . . . . . . . . . . 2 . 2 Robot Hit Streak 14 | . 7 14 13 11 7 . . . . . . . 2 . . 2 . . 2 . . . 9 4 6 . Robot Miss Streak 4 | . 1 4 3 4 4 . . . . . . . 1 . 1 2 . . 1 . . . 2 3 . . Penetration Max . | . . . . . . . . . . . . . . . . . . . . . . . . . . . Secondary Targets 4 | . . . 2 2 . . . . . . . . . . . . . . . . . . . . . . Max Gunslinging Chain 1 | . . . 1 1 . . . . . . . . . . . . . . . . . . . . . . Capacitor 16 | . . . . . . . . . . . . . . . . . . . . . . . 16 . . . Shots Hit Robots 381 | . 10 41 66 55 34 13 . . . . 3 2 2 . 6 43 3 2 2 . 19 11 30 4 18 17 Core Hits 319 | . 5 26 63 35 15 6 . . . . 3 1 9 . 8 27 20 1 30 . 6 6 11 4 8 35 Critical Kills 4 | . . 1 . 1 . . . . . . . . . . . . . . . . . . 2 . . . Critical Parts Destroyed . | . . . . . . . . . . . . . . . . . . . . . . . . . . . Critical Strikes 22 | . . 1 . 1 . 2 . . . . . . . . . 6 . . . . 2 2 5 . 2 1 Meltdown 3 | . . 1 . . . . . . . . . . . . . . . . . . . . 2 . . . Destroy 1 | . . . . 1 . . . . . . . . . . . . . . . . . . . . . . Sever 10 | . . . . . . 2 . . . . . . . . . 3 . . . . 2 . 3 . . . Impale 8 | . . . . . . . . . . . . . . . . 3 . . . . . 2 . . 2 1 Melee Attacks 459 | . . . . . . 35 6 . . 1 19 7 1 . 9 101 5 4 37 7 72 26 40 4 48 37 Impact . | . . . . . . . . . . . . . . . . . . . . . . . . . . . Slashing 229 | . . . . . . 35 6 . . 1 19 7 1 . 9 64 . . . 5 26 . 34 . 22 . Piercing 230 | . . . . . . . . . . . . . . . . 37 5 4 37 2 46 26 6 4 26 37 Sneak Attacks 28 | . . . . . . 4 . . . . 2 2 . . 3 3 . 2 . . 1 5 3 . 2 1 Combat Hostiles 1 | . . . . . . . . . . . . . . . 1 . . . . . . . . . . . Follow-up Attacks 16 | . . . . . . . . . . . . . . . . 5 . . . 1 6 . . . 4 . Damage Inflicted 22205 | . 78 1165 3117 1506 619 710 . . . . 222 216 473 . 647 2387 1560 210 2350 . 970 725 2153 251 1447 1399 Guns 3058 | . 78 516 805 1040 619 . . . . . . . . . . . . . . . . . . . . . Cannons 1235 | . . 244 223 . . . . . . . . . . . . . . . . . . . 638 45 85 . Explosions 8761 | . . 405 2089 466 . . . . . . . . 473 . 261 583 1407 . 2350 . . . . 145 . 582 Melee 9151 | . . . . . . 710 . . . . 222 216 . . 386 1804 153 210 . . 970 725 1515 61 1362 817 Ramming . | . . . . . . . . . . . . . . . . . . . . . . . . . . . Kinetic 4369 | . 26 168 2444 1112 619 . . . . . . . . . . . . . . . . . . . . . Thermal 2007 | . 52 743 245 199 . . . . . . . . . . . . . . . . . . 638 45 85 . Explosive 5951 | . . 254 428 195 . . . . . . . . 473 . 261 583 1407 . 2350 . . . . . . . Electromagnetic 727 | . . . . . . . . . . . . . . . . . . . . . . . . 145 . 582 Impact . | . . . . . . . . . . . . . . . . . . . . . . . . . . . Slashing 5430 | . . . . . . 710 . . . . 222 216 . . 386 1054 . . . . 435 . 1515 . 892 . Piercing 3721 | . . . . . . . . . . . . . . . . 750 153 210 . . 535 725 . 61 470 817 Highest Corruption 23 | . . . . . 12 2 2 2 . . . 10 5 3 5 3 3 . 17 23 6 6 1 1 6 . Average Corruption 4 | . . . . . 11 2 2 1 . . . 7 3 3 4 2 2 . 3 17 5 6 1 1 5 . Corruption Purged 13 | . . . . . . . . 2 . . . 5 2 . . . 3 . . . . . . . 1 . Corruption Blocked 47 | . . . . . . . . . . . . . . . . . . . . . . 1 8 20 18 . Effects 59 | . . . . . 2 . 2 . . . . 2 3 1 5 6 2 . 8 12 1 4 . 3 8 . Message Errors 17 | . . . . . . . 1 . . . . 1 . . 3 2 1 . . 2 1 1 . 1 4 . Matter Fused 14 | . . . . . 1 . 1 . . . . . 2 . . 2 . . 3 3 . 1 . . 1 . Heat Flow Errors 6 | . . . . . . . . . . . . . 1 1 1 . . . 2 1 . . . . . . Energy Discharges 8 | . . . . . . . . . . . . 1 . . . . . . 1 3 . 2 . 1 . . Parts Rejected 1 | . . . . . . . . . . . . . . . . . . . . . . . . . 1 . Parts Fused 1 | . . . . . . . . . . . . . . . . . . . . 1 . . . . . . Data Loss (minor) 6 | . . . . . . . . . . . . . . . 1 1 . . 2 1 . . . . 1 . Data Loss (major) 4 | . . . . . . . . . . . . . . . . 1 1 . . 1 . . . . 1 . Alerts 2 | . . . . . 1 . . . . . . . . . . . . . . . . . . 1 . . Overload Shots 2 | . . . . . . . . . . . . 2 . . . . . . . . . . . . . . Overflow Damage 1778 | . . . 15 21 . 186 . . . . . 38 7 . 124 60 210 80 24 . 81 122 410 15 228 157 Projectiles 78 | . . . . . . . . . . . . . . . . . . . . . . . 63 15 . . Explosions 287 | . . . 15 21 . . . . . . . . 7 . . . 210 . 24 . . . . . . 10 Melee 1413 | . . . . . . 186 . . . . . 38 . . 124 60 . 80 . . 81 122 347 . 228 147 Knockbacks . | . . . . . . . . . . . . . . . . . . . . . . . . . . . Impact . | . . . . . . . . . . . . . . . . . . . . . . . . . . . Kinetic . | . . . . . . . . . . . . . . . . . . . . . . . . . . . Secondary . | . . . . . . . . . . . . . . . . . . . . . . . . . . . Self-Inflicted Damage 481 | . . 30 86 12 . . . . . . . . 23 . . 65 . . 151 . . . . 80 . 34 Shots 24 | . . 3 4 1 . . . . . . . . 1 . . 1 . . 2 . . . . 8 . 4 Rammed . | . . . . . . . . . . . . . . . . . . . . . . . . . . . Targets Rammed . | . . . . . . . . . . . . . . . . . . . . . . . . . . . Kicked . | . . . . . . . . . . . . . . . . . . . . . . . . . . . Crushed . | . . . . . . . . . . . . . . . . . . . . . . . . . . . Highest Temperature 360 | . 32 72 351 323 42 . . . . 3 123 330 247 182 249 30 48 36 252 64 48 . 360 30 8 . Average Temperature 61 | . 15 20 82 86 8 . . . . 3 29 94 95 97 40 14 23 21 91 21 22 . 99 14 5 . Received Heat Transfer 1493 | . 24 159 324 492 27 . . . . . 9 . 9 . . 94 57 . . . 36 100 45 . 45 72 Effects 2 | . . . . 1 . . . . . . . . 1 . . . . . . . . . . . . . Shutdowns 1 | . . . . 1 . . . . . . . . . . . . . . . . . . . . . . Energy Bleed 1 | . . . . . . . . . . . . . 1 . . . . . . . . . . . . . Siege Activations . | . . . . . . . . . . . . . . . . . . . . . . . . . . . Robots Corrupted . | . . . . . . . . . . . . . . . . . . . . . . . . . . . Combat Hostiles . | . . . . . . . . . . . . . . . . . . . . . . . . . . . Parts Fried 3 | . . . . . . . . . . . . . . . . . . . . . . . . 1 . 2 Impact Corruptions . | . . . . . . . . . . . . . . . . . . . . . . . . . . . Robots Melted 3 | . . 1 . . . . . . . . . . . . . . . . . . . . 2 . . . Combat Hostiles 2 | . . 1 . . . . . . . . . . . . . . . . . . . . 1 . . . Parts Melted 7 | . . 3 1 1 . . . . . . . . . . . . . . . . . . 2 . . . Heat Transferred 2290 | . 125 958 321 220 . . . . . . . . . . . . . . . . . . 555 37 74 . Parts Sabotaged . | . . . . . . . . . . . . . . . . . . . . . . . . . . . Parts Stolen . | . . . . . . . . . . . . . . . . . . . . . . . . . . . Parts Stripped . | . . . . . . . . . . . . . . . . . . . . . . . . . . . Power Chain Reactions . | . . . . . . . . . . . . . . . . . . . . . . . . . . . Alert | -11 -10 -10 -8 -8 -8 -6 -6 -6 -6 -5 -5 -5 -5 -5 -4 -4 -4 -4 -4 -3 -3 -3 -2 -2 -2 -1 ------- Run | Yrd Mat Sub Mat Sto Rec Fac Low Low Dat Pro Fac Upp Upp Zhi Pro Fac Upp Upp War Pro Res Qua Res Tes Sec Acc Peak Influence 1361 | . 70 . 555 1019 319 294 . . . . 82 . . . . 562 . . . . 374 341 270 271 629 1361 Initial 400 | . . . . 234 319 25 . . . . . . . . . 400 . . . . 300 158 78 122 152 386 Average 221 | . 51 . 132 554 128 129 . . . . 44 . . . . 208 . . . . 279 255 126 171 325 709 Maximum Alert Level 4 | . . . 2 3 1 1 . . . . . . . . . 2 . . . . 1 1 1 1 2 4 Low Security (%) 55 | 100 100 . 73 . 78 79 . . . . 100 . . . . 63 . . . . 11 26 82 81 9 . Level 1 29 | . . . 16 35 21 20 . . . . . . . . . 1 . . . . 88 73 17 18 63 8 Level 2 11 | . . . 10 32 . . . . . . . . . . . 34 . . . . . . . . 27 53 Level 3 2 | . . . . 31 . . . . . . . . . . . . . . . . . . . . . 21 Level 4 . | . . . . . . . . . . . . . . . . . . . . . . . . . . 16 Level 5 . | . . . . . . . . . . . . . . . . . . . . . . . . . . . High Security . | . . . . . . . . . . . . . . . . . . . . . . . . . . . Max Security . | . . . . . . . . . . . . . . . . . . . . . . . . . . . Squads Dispatched 43 | . 1 . 2 6 . . . . . . . . . . . 4 . . . . 7 1 5 4 5 8 Investigation 10 | . . . . . . . . . . . . . . . . 2 . . . . 1 . 4 . 1 2 Extermination 7 | . . . . . . . . . . . . . . . . 2 . . . . 2 . . 1 1 1 Reinforcement 18 | . 1 . 2 1 . . . . . . . . . . . . . . . . 4 1 1 3 3 2 Assault 4 | . . . . 4 . . . . . . . . . . . . . . . . . . . . . . Garrison 4 | . . . . 1 . . . . . . . . . . . . . . . . . . . . . 3 Intercept . | . . . . . . . . . . . . . . . . . . . . . . . . . . . Searches Triggered 2 | . . . . . . . . . . . . . . . . 1 . . . . . . . . 1 . Construction Impeded 1 | . . . 1 . . . . . . . . . . . . . . . . . . . . . . . Haulers Reinforced 1 | . . . . . . . . . . . . . . . . . . . . . . . 1 . . . Active Scanning Responses . | . . . . . . . . . . . . . . . . . . . . . . . . . . . Cargo Convoy Interrupts . | . . . . . . . . . . . . . . . . . . . . . . . . . . . Stealth | -11 -10 -10 -8 -8 -8 -6 -6 -6 -6 -5 -5 -5 -5 -5 -4 -4 -4 -4 -4 -3 -3 -3 -2 -2 -2 -1 --------- Run | Yrd Mat Sub Mat Sto Rec Fac Low Low Dat Pro Fac Upp Upp Zhi Pro Fac Upp Upp War Pro Res Qua Res Tes Sec Acc Distress Signals 20 | . . . 2 . . . . . . . . . . . 1 3 . . 2 . 1 1 3 1 3 3 Communications Jammed . | . . . . . . . . . . . . . . . . . . . . . . . . . . . Distress Signals . | . . . . . . . . . . . . . . . . . . . . . . . . . . . Times Spotted 407 | . 3 25 28 30 5 11 1 . . . 4 . 2 . 7 27 11 . 42 2 39 12 26 3 66 63 Peak Tracking Total 29 | . 2 6 7 5 3 6 1 . . . 2 . 3 . 5 7 5 . 13 2 19 9 5 1 29 25 Tactical Retreats 48 | . . 5 1 . . 5 1 . . . . . . . . 4 2 . 4 . 2 . 6 . 10 8 Traps | -11 -10 -10 -8 -8 -8 -6 -6 -6 -6 -5 -5 -5 -5 -5 -4 -4 -4 -4 -4 -3 -3 -3 -2 -2 -2 -1 ------- Run | Yrd Mat Sub Mat Sto Rec Fac Low Low Dat Pro Fac Upp Upp Zhi Pro Fac Upp Upp War Pro Res Qua Res Tes Sec Acc Traps Triggered 5 | . . . . 1 . 1 . . . . . . . . . 1 . . . . 1 . 1 . . . Indirectly . | . . . . . . . . . . . . . . . . . . . . . . . . . . . Trap Hack Attempts . | . . . . . . . . . . . . . . . . . . . . . . . . . . . Triggered . | . . . . . . . . . . . . . . . . . . . . . . . . . . . Disarmed . | . . . . . . . . . . . . . . . . . . . . . . . . . . . Reprogrammed . | . . . . . . . . . . . . . . . . . . . . . . . . . . . Reused . | . . . . . . . . . . . . . . . . . . . . . . . . . . . Traps Extracted . | . . . . . . . . . . . . . . . . . . . . . . . . . . . Installed . | . . . . . . . . . . . . . . . . . . . . . . . . . . . Triggered 12 | . . . . . . . . . . . . . . . . . . . 12 . . . . . . . Machines | -11 -10 -10 -8 -8 -8 -6 -6 -6 -6 -5 -5 -5 -5 -5 -4 -4 -4 -4 -4 -3 -3 -3 -2 -2 -2 -1 ---------- Run | Yrd Mat Sub Mat Sto Rec Fac Low Low Dat Pro Fac Upp Upp Zhi Pro Fac Upp Upp War Pro Res Qua Res Tes Sec Acc Machines Disabled 30 | . . 1 1 3 . . . . . . . . . . . 2 . . 1 . . 7 1 4 10 . Max in Single Turn 2 | . . 1 1 1 . . . . . . . . . . . 2 . . 1 . . 1 1 2 1 . Garrison Access 7 | . . . . 1 . 2 . . . . 1 . . . . 1 . . . . . 1 1 . . . Machines Repaired . | . . . . . . . . . . . . . . . . . . . . . . . . . . . Machines Dismantled . | . . . . . . . . . . . . . . . . . . . . . . . . . . . Machines Sabotaged . | . . . . . . . . . . . . . . . . . . . . . . . . . . . Overloaded Fab Kills . | . . . . . . . . . . . . . . . . . . . . . . . . . . . Hacking | -11 -10 -10 -8 -8 -8 -6 -6 -6 -6 -5 -5 -5 -5 -5 -4 -4 -4 -4 -4 -3 -3 -3 -2 -2 -2 -1 --------- Run | Yrd Mat Sub Mat Sto Rec Fac Low Low Dat Pro Fac Upp Upp Zhi Pro Fac Upp Upp War Pro Res Qua Res Tes Sec Acc Machines Accessed 83 | . 1 1 . 1 7 7 . . 4 . 6 . 1 5 . 11 1 . 9 1 6 5 5 3 6 3 Terminals 48 | . 1 . . 1 6 5 . . . . 5 . . . . 7 . . . 1 4 4 3 3 6 2 Fabricators 3 | . . . . . . . . . . . . . . . . 1 . . . . . . 1 . . 1 Repair Stations . | . . . . . . . . . . . . . . . . . . . . . . . . . . . Recycling Units 3 | . . . . . 1 . . . . . . . . . . 1 . . . . 1 . . . . . Scanalyzers 2 | . . . . . . . . . . . . . . . . 1 . . . . 1 . . . . . Garrison Access 6 | . . . . . . 2 . . . . 1 . . . . 1 . . . . . 1 1 . . . Total Hacks 243 | . 1 1 . 2 20 14 . . 27 . 19 . 1 18 . 47 1 . 27 1 14 12 13 4 12 9 Successful 164 | . 1 1 . 2 9 8 . . 27 . 14 . 1 18 . 32 1 . 27 1 8 5 1 1 4 3 Failed 78 | . . . . . 11 6 . . . . 5 . . . . 14 . . . . 6 7 12 3 8 6 Catastrophic 17 | . . . . . 1 1 . . . . 1 . . . . 1 . . . . 2 2 5 1 1 2 Database Lockouts 1 | . . . . . . . . . . . . . . . . 1 . . . . . . . . . . Manual 94 | . 1 . . 3 14 8 . . . . 13 . . . . 32 . . 1 1 8 6 3 1 2 1 Terminals 130 | . 1 . . 2 19 10 . . . . 18 . . . . 33 . . . 1 7 10 7 4 12 6 Fabricators 10 | . . . . . . . . . . . . . . . . 3 . . . . . . 4 . . 3 Repair Stations . | . . . . . . . . . . . . . . . . . . . . . . . . . . . Recycling Units 9 | . . . . . 1 . . . . . . . . . . 4 . . . . 4 . . . . . Scanalyzers 8 | . . . . . . . . . . . . . . . . 5 . . . . 3 . . . . . Garrison Access 11 | . . . . . . 4 . . . . 1 . . . . 2 . . . . . 2 2 . . . Terminal Hacks 118 | . . 1 . 1 3 2 . . 27 . 7 . 1 18 . 17 1 . 27 1 1 4 . 1 4 2 Record 41 | . . . . . . . . . 11 . 2 . . 6 . 1 . . 19 1 . 1 . . . . Part Schematic 16 | . . . . . . 1 . . 9 . . . . 4 . 2 . . . . . . . . . . Robot Schematic 4 | . . . . . . . . . 4 . . . . . . . . . . . . . . . . . Robot Analysis 7 | . . . . . 1 . . . . . 1 . . 4 . 1 . . . . . . . . . . Prototype ID Bank 14 | . . . . . . 1 . . 3 . . . . 4 . . . . 6 . . . . . . . Open Door 11 | . . . . . . . . . . . . . 1 . . . 1 . 2 . 1 1 . 1 4 . Branch Access Points 4 | . . . . . . . . . . . 1 . . . . 2 . . . . . 1 . . . . Machine Index 1 | . . . . . . . . . . . . . . . . 1 . . . . . . . . . . Terminal Index 2 | . . . . . . . . . . . 1 . . . . 1 . . . . . . . . . . Fabricator Index 1 | . . . . . . . . . . . . . . . . 1 . . . . . . . . . . Garrison Index 1 | . . . . . . . . . . . . . . . . . . . . . . . . . . 1 Unreport Threat 8 | . . . . . 1 . . . . . 1 . . . . 6 . . . . . . . . . . Hauler Manifests 1 | . . . . 1 . . . . . . . . . . . . . . . . . . . . . . Registered Components 2 | . . . . . . . . . . . 1 . . . . 1 . . . . . . . . . . Zone Layout 4 | . . . . . 1 . . . . . . . . . . 1 . . . . . 1 . . . 1 Derelict Proto ID Bank 1 | . . 1 . . . . . . . . . . . . . . . . . . . . . . . . Fabricator Hacks 3 | . . . . . . . . . . . . . . . . 2 . . . . . . . . . 1 Load Schematic 2 | . . . . . . . . . . . . . . . . 1 . . . . . . . . . 1 Build 1 | . . . . . . . . . . . . . . . . 1 . . . . . . . . . . Repair Station Hacks . | . . . . . . . . . . . . . . . . . . . . . . . . . . . Recycling Unit Hacks . | . . . . . . . . . . . . . . . . . . . . . . . . . . . Scanalyzer 7 | . . . . . . . . . . . . . . . . 5 . . . . 2 . . . . . Insert Component 4 | . . . . . . . . . . . . . . . . 3 . . . . 1 . . . . . Analyze 3 | . . . . . . . . . . . . . . . . 2 . . . . 1 . . . . . Garrison Access Hacks 5 | . . . . . . 2 . . . . 1 . . . . 1 . . . . . 1 . . . . Seal Access 5 | . . . . . . 2 . . . . 1 . . . . 1 . . . . . 1 . . . . Unauthorized Hacks 30 | . 1 . . 1 6 4 . . . . 5 . . . . 7 . . . . 5 . 1 . . . Terminals 24 | . 1 . . 1 5 4 . . . . 5 . . . . 5 . . . . 2 . 1 . . . Track 1 | . . . . . . . . . . . . . . . . 1 . . . . . . . . . . Assimilate 4 | . . . . . . . . . . . 1 . . . . 1 . . . . 1 . 1 . . . Botnet 19 | . 1 . . 1 5 4 . . . . 4 . . . . 3 . . . . 1 . . . . . Fabricators 1 | . . . . . . . . . . . . . . . . 1 . . . . . . . . . . Prioritize 1 | . . . . . . . . . . . . . . . . 1 . . . . . . . . . . Repair Stations . | . . . . . . . . . . . . . . . . . . . . . . . . . . . Recycling Units 5 | . . . . . 1 . . . . . . . . . . 1 . . . . 3 . . . . . Monitor 1 | . . . . . . . . . . . . . . . . . . . . . 1 . . . . . Recyclers 2 | . . . . . 1 . . . . . . . . . . . . . . . 1 . . . . . Mask 2 | . . . . . . . . . . . . . . . . 1 . . . . 1 . . . . . Scanalyzers . | . . . . . . . . . . . . . . . . . . . . . . . . . . . Garrison Access . | . . . . . . . . . . . . . . . . . . . . . . . . . . . Data Cores Recovered 3 | . . . . . . 1 . . . . . . . . . . . . . . . . . . 1 1 Used 1 | . . . . . . 1 . . . . . . . . . . . . . . . . . . . . Hacking Detections 49 | . . . . 2 6 5 . . . . 5 . . . . 11 . . . . 4 2 5 3 3 3 Full Trace Events 8 | . . . . . . . . . . . . . . . . 2 . . . . . . 3 . 1 2 Feedback Events 2 | . . . . . . . . . . . . . . . . . . . . . . . 2 . . . Corruption 1 | . . . . . . . . . . . . . . . . . . . . . . . 1 . . . Hackware Fried 1 | . . . . . . . . . . . . . . . . . . . . . . . 1 . . . Feedback Blocked . | . . . . . . . . . . . . . . . . . . . . . . . . . . . Robot Schematics Acquired 5 | . . . . . . . . . 4 . . . . . . . . . . . . 1 . . . . Robots Built . | . . . . . . . . . . . . . . . . . . . . . . . . . . . Authchips . | . . . . . . . . . . . . . . . . . . . . . . . . . . . Time . | . . . . . . . . . . . . . . . . . . . . . . . . . . . Total Robot Build Rating . | . . . . . . . . . . . . . . . . . . . . . . . . . . . Part Schematics Acquired 22 | . . . . . . 1 . . 9 . . . . 4 . 4 . . . . . 2 . 2 . . Parts Built 2 | . . . . . . . . . . . . . . . . 2 . . . . . . . . . . Authchips . | . . . . . . . . . . . . . . . . . . . . . . . . . . . Time 47 | . . . . . . . . . . . . . . . . 47 . . . . . . . . . . Total Part Build Rating 10 | . . . . . . . . . . . . . . . . 10 . . . . . . . . . . Parts Repaired . | . . . . . . . . . . . . . . . . . . . . . . . . . . . Time . | . . . . . . . . . . . . . . . . . . . . . . . . . . . Parts Recycled . | . . . . . . . . . . . . . . . . . . . . . . . . . . . Recycled Matter . | . . . . . . . . . . . . . . . . . . . . . . . . . . . Retrieved Matter . | . . . . . . . . . . . . . . . . . . . . . . . . . . . Retrieved Components . | . . . . . . . . . . . . . . . . . . . . . . . . . . . Parts Scanalyzed 3 | . . . . . . . . . . . . . . . . 2 . . . . 1 . . . . . Part Schematics Acquired 2 | . . . . . . . . . . . . . . . . 2 . . . . . . . . . . Parts Damaged . | . . . . . . . . . . . . . . . . . . . . . . . . . . . Bothacking | -11 -10 -10 -8 -8 -8 -6 -6 -6 -6 -5 -5 -5 -5 -5 -4 -4 -4 -4 -4 -3 -3 -3 -2 -2 -2 -1 ------------ Run | Yrd Mat Sub Mat Sto Rec Fac Low Low Dat Pro Fac Upp Upp Zhi Pro Fac Upp Upp War Pro Res Qua Res Tes Sec Acc Used RIF Installer . | . . . . . . . . . . . . . . . . . . . . . . . . . . . Robots Hacked . | . . . . . . . . . . . . . . . . . . . . . . . . . . . Non-combat . | . . . . . . . . . . . . . . . . . . . . . . . . . . . Combat . | . . . . . . . . . . . . . . . . . . . . . . . . . . . Robot Hacks Applied . | . . . . . . . . . . . . . . . . . . . . . . . . . . . Relay Couplers Released 3 | . . . . 1 . . . . . . . . . . . . . . . . . . 2 . . . Machine Destruction 3 | . . . . 1 . . . . . . . . . . . . . . . . . . 2 . . . Fabnet Peak Effective % . | . . . . . . . . . . . . . . . . . . . . . . . . . . . Robots Rewired . | . . . . . . . . . . . . . . . . . . . . . . . . . . . Allies Hacked . | . . . . . . . . . . . . . . . . . . . . . . . . . . . Hacks Repelled . | . . . . . . . . . . . . . . . . . . . . . . . . . . . Allies | -11 -10 -10 -8 -8 -8 -6 -6 -6 -6 -5 -5 -5 -5 -5 -4 -4 -4 -4 -4 -3 -3 -3 -2 -2 -2 -1 -------- Run | Yrd Mat Sub Mat Sto Rec Fac Low Low Dat Pro Fac Upp Upp Zhi Pro Fac Upp Upp War Pro Res Qua Res Tes Sec Acc Total Allies 14 | . . . . 12 . . . . . . 1 . . . . . . . . . 1 . . . . . Largest Group 10 | . . . . 10 . . . . . . 1 . . . . . . . . . 1 . . . . . Highest-Rated Group 173 | . . . . 173 . . . . . . 26 . . . . . . . . . 26 . . . . . Highest-Rated Ally 31 | . . . . 31 . . . . . . 26 . . . . . . . . . 26 . . . . . Total Orders 9 | . . . . . . . . . . . . . . . . . . . . . . . 9 . . . EXPLORE 9 | . . . . . . . . . . . . . . . . . . . . . . . 9 . . . Ally Attacks 106 | . . . . 106 . . . . . . . . . . . . . . . . . . . . . . Total Damage 1580 | . . . . 1580 . . . . . . . . . . . . . . . . . . . . . . Kills 13 | . . . . 13 . . . . . . . . . . . . . . . . . . . . . . Allies Corrupted . | . . . . . . . . . . . . . . . . . . . . . . . . . . . Allies Melted 2 | . . . . . . . . . . . . . . . . . . . 2 . . . . . . . Intel | -11 -10 -10 -8 -8 -8 -6 -6 -6 -6 -5 -5 -5 -5 -5 -4 -4 -4 -4 -4 -3 -3 -3 -2 -2 -2 -1 ------- Run | Yrd Mat Sub Mat Sto Rec Fac Low Low Dat Pro Fac Upp Upp Zhi Pro Fac Upp Upp War Pro Res Qua Res Tes Sec Acc Robot Analysis Total 7 | . . . . . 1 . . . . . 1 . . 4 . 1 . . . . . . . . . . Derelict Logs Recovered 7 | . . . . . . . . 1 . 1 . . 2 . 1 . 2 . . . . . . . . . Drone Launches 11 | . . . . . . . . . . . . . . . . . . . . . . . 11 . . . Drone Recoveries 5 | . . . . . . . . . . . . . . . . . . . . . . . 5 . . . Exploration | -11 -10 -10 -8 -8 -8 -6 -6 -6 -6 -5 -5 -5 -5 -5 -4 -4 -4 -4 -4 -3 -3 -3 -2 -2 -2 -1 ------------- Run | Yrd Mat Sub Mat Sto Rec Fac Low Low Dat Pro Fac Upp Upp Zhi Pro Fac Upp Upp War Pro Res Qua Res Tes Sec Acc Turns Passed 12656 | 8 408 1772 618 424 694 539 92 156 29 118 280 443 129 71 290 983 486 215 1205 266 791 424 1002 280 641 292 Spaces Moved 16633 | 7 245 1162 275 171 387 1150 212 276 86 258 447 441 279 166 571 1448 458 136 1492 354 1076 497 2173 602 1569 695 Core 77 | . . . . . . . . . . . . . . . . . . . . . 5 71 . . . 1 Treads 754 | . . 135 98 171 350 . . . . . . . . . . . . . . . . . . . . . Legs 364 | 7 245 28 . . . . . . . . . . . . . . . . . . . . 84 . . . Wheels 1236 | . . 999 177 . . . . . . . . . . . . . . . . . . 60 . . . . Hover 34 | . . . . . . . . . . . . . . . . . . . . . . 34 . . . . Flight 13867 | . . . . . 37 1150 212 276 86 258 447 441 279 166 571 1448 458 136 1492 354 1071 332 2089 602 1351 611 Fastest Speed 14 | 120 120 107 120 148 26 30 34 34 34 34 30 30 30 30 30 24 37 37 37 39 26 40 20 14 15 21 Average Speed 46 | 120 134 131 134 148 153 35 34 34 34 34 31 30 30 30 30 31 37 37 39 39 32 52 30 27 21 21 Slowest Speed 240 | 120 190 240 225 150 169 40 34 34 34 34 90 90 90 30 30 37 37 37 97 39 110 200 120 96 22 50 Overloaded Moves 301 | . . . . . . . . . . . . . . . . 25 . . . . 120 . 83 38 35 . Propulsion Burnouts . | . . . . . . . . . . . . . . . . . . . . . . . . . . . Robots Hopped 55 | . . . . . . 3 . . . . 1 . . . . 2 . . 2 . 9 3 9 . 20 6 Cave-ins Triggered 2 | . . . . . . . . . . . . 1 . . . . . . . . . . . . 1 . Teleports 3 | . . . . . . . . . . . . . . . . . . . . . 1 . . . 2 . Microwarps 21 | . . . . . . . . . . . . . . . . . . . . . . . . . 17 4 Exploration Rate (%) 50 | 3 31 51 24 33 81 35 52 51 77 46 17 55 61 62 65 41 65 33 97 64 31 57 70 48 78 25 Regions Visited 26 Branch Regions 18 Pre-discovered Areas 5 | . . . . . . . . . 1 1 . . . 3 . . . . . . . . . . . . Known Exits Taken 17 | . . . . . 1 1 1 1 1 1 1 . . . . 1 1 1 1 1 1 1 1 1 1 . Unknown Exits Taken 9 | 1 1 1 1 1 . . . . . . . 1 1 1 1 . . . . . . . . . . . Scrap Searched 25 | . . 5 . . . . 3 3 . 1 . 2 3 . 2 . 3 1 . 2 . . . . . . Spaces Dug 315 | . . 1 8 . . 14 6 . . 1 16 26 8 . 29 49 11 5 28 12 37 5 22 13 14 10 Terrain Destroyed 864 | . . 23 168 46 . 14 6 . . 63 16 27 53 . 49 144 59 5 74 12 37 5 25 14 14 10 Melee 191 | . . . . . . 14 6 . . 1 14 5 1 . 1 36 1 2 28 3 33 5 19 . 14 8 Projectile 123 | . . 2 4 . . . . . . . 2 22 7 . 28 13 7 3 . 9 4 . 6 14 . 2 AOE 550 | . . 21 164 46 . . . . . 62 . . 45 . 20 95 51 . 46 . . . . . . . Terrain Rammed . | . . . . . . . . . . . . . . . . . . . . . . . . . . . Walls Destroyed . | . . . . . . . . . . . . . . . . . . . . . . . . . . . Machines Disabled . | . . . . . . . . . . . . . . . . . . . . . . . . . . . Actions | -11 -10 -10 -8 -8 -8 -6 -6 -6 -6 -5 -5 -5 -5 -5 -4 -4 -4 -4 -4 -3 -3 -3 -2 -2 -2 -1 --------- Run | Yrd Mat Sub Mat Sto Rec Fac Low Low Dat Pro Fac Upp Upp Zhi Pro Fac Upp Upp War Pro Res Qua Res Tes Sec Acc Total 20126 | 6 313 1313 430 291 454 1226 220 338 85 282 548 711 304 188 641 1805 746 290 2027 462 1414 612 2429 689 1597 705 Wait 2279 | . 56 8 47 33 10 3 . 54 . 21 69 229 6 . 30 202 255 139 415 85 261 55 89 42 148 22 Move 16228 | 6 244 1161 274 170 386 1143 211 275 85 257 444 439 278 165 570 1443 457 135 1488 353 1059 490 2158 601 1332 604 Hop 43 | . . . . . . 3 . . . . 1 . . . . 2 . . 1 . 7 3 5 . 15 6 Pick Up 98 | . 2 17 8 10 5 12 1 1 . . 3 2 1 2 . 5 . . 6 . 4 3 13 1 1 1 Fast Attach 199 | . 1 11 9 4 5 8 . 2 . . 1 1 3 8 . 8 2 3 26 2 7 18 39 5 28 8 Attach 60 | . . 1 2 1 1 2 . 1 . . 2 1 . . . 5 2 1 2 4 6 3 12 1 4 9 Detach 66 | . . . . 2 . 2 . . . . 1 . . . . 7 2 2 9 3 3 4 20 2 4 5 Swap 108 | . 2 14 13 4 7 5 1 1 . . 4 4 4 2 2 14 1 1 4 1 2 . 3 8 8 3 Drop 215 | . 2 28 15 13 13 13 1 4 . . 2 3 . 11 . 10 3 2 30 . 6 10 25 6 13 5 Fire 391 | . 6 63 62 51 27 . . . . 3 2 24 11 . 30 17 19 3 9 9 4 . 23 19 4 5 Melee 422 | . . . . . . 35 6 . . 1 19 7 1 . 9 92 5 4 37 5 55 26 39 4 40 37 Ram . | . . . . . . . . . . . . . . . . . . . . . . . . . . . Kick . | . . . . . . . . . . . . . . . . . . . . . . . . . . . Crush . | . . . . . . . . . . . . . . . . . . . . . . . . . . . Escape Stasis 1 | . . . . . . . . . . . . 1 . . . . . . . . . . . . . . Rewire 3 | . . . . 3 . . . . . . . . . . . . . . . . . . . . . . Trap . | . . . . . . . . . . . . . . . . . . . . . . . . . . . Miscellaneous 13 | . . 10 . . . . . . . . . . . . . . . . . . . . 3 . . . Route ------- -11/Scrapyard -10/Materials (discovered 2 exits: [*Mat] / *Sub) -10/Subcaves (discovered 3 exits: [*Mat x2] / *Rec) -8/Materials -8/Storage -8/Recycling -6/Factory (discovered 2 exits: *Fac / *Low) -6/Lower Caves -6/Lower Caves -6/Data Miner -5/Proximity Caves -5/Factory (discovered 2 exits: *Upp x2) -5/Upper Caves -5/Upper Caves (discovered 2 exits: *Fac / *Zhi) -5/Zhirov -4/Proximity Caves -4/Factory (discovered 6 exits: *Res x2 / *Upp x2 / Ext x2) -4/Upper Caves -4/Upper Caves -4/Warlord -3/Proximity Caves -3/Research (discovered 4 exits: Res / *Arm / *Qua x2) -3/Quarantine -2/Research -2/Testing -2/Section 7 -1/Access History --------- Turn | Location | Event 1 | -11/Scrapyard | Discovered new exit (range 3) 9 | -11/Scrapyard | Entered Materials 90 | -10/Materials | Discovered new exit (range 13) 253 | -10/Materials | Discovered new exit (range 5) 301 | -10/Materials | Build established: Mutant 417 | -10/Materials | Entered Subcaves 520 | -10/Subcaves | Discovered new exit (range 8) 528 | -10/Subcaves | A swath of the cavern ceiling suddenly collapsed 575 | -10/Subcaves | Shifting Twisted Machinery released Sub. Laser 621 | -10/Subcaves | Discovered new exit (range 6) 628 | -10/Subcaves | Ambushed by Subdwellers from Twisted Machinery 646 | -10/Subcaves | Ambushed by Subdweller buried in earth 745 | -10/Subcaves | Disturbed a concealed Subdweller 803 | -10/Subcaves | Build established: Subdweller-Mutant 1038 | -10/Subcaves | Discovered new exit (range 14) 1337 | -10/Subcaves | Visited 4L-MR0's lab 1966 | -10/Subcaves | Found Flightbrick 2001 | -10/Subcaves | Build established: Derelict-Mutant 2189 | -10/Subcaves | Entered Materials 2189 | -8/Materials | Evolved 4 slots: Propulsion x2, Utility x2 2323 | -8/Materials | Build established: Mutant 2737 | -8/Materials | Discovered new exit (range 17) 2807 | -8/Materials | Entered Storage 2852 | -8/Storage | Met a pair of Derelict thieves 3020 | -8/Storage | Assisted by bots powering up and referring to "LRC-V3" 3023 | -8/Storage | Garrison activated, responded to threat 3092 | -8/Storage | Lost 4 allies 3148 | -8/Storage | Lost 7 allies 3207 | -8/Storage | First assault squad dispatched 3225 | -8/Storage | Used back door to open Recycling access 3225 | -8/Storage | Discovered new exit (range 5) 3231 | -8/Storage | Entered Recycling 3237 | -8/Recycling | Found Scrap Engine 3584 | -8/Recycling | Build established: Scavenger-Mutant 3688 | -8/Recycling | Discovered new exit (range 17) 3866 | -8/Recycling | System corruption reached 10% 3925 | -8/Recycling | Identified exit to Factory 3925 | -8/Recycling | Entered Factory 3925 | -6/Factory | Evolved 4 slots: Propulsion x2, Utility x2 3928 | -6/Factory | Attached Flightbrick, gained temporary slots: Utility x3 3977 | -6/Factory | Discovered new exit (range 11) 4001 | -6/Factory | Identified exit to Factory 4150 | -6/Factory | Spotted B-75 Beast 4188 | -6/Factory | Discovered new exit (range 8) 4190 | -6/Factory | Identified exit to Lower Caves 4464 | -6/Factory | Entered Lower Caves 4501 | -6/Lower Caves | Spotted B-75 Beast 4553 | -6/Lower Caves | Discovered new exit (range 9) 4555 | -6/Lower Caves | Identified exit to Lower Caves 4556 | -6/Lower Caves | Entered another Lower Caves area 4622 | -6/Lower Caves | Learned Factory emergency access door positions 4709 | -6/Lower Caves | Discovered new exit (range 8) 4711 | -6/Lower Caves | Identified exit to Data Miner 4712 | -6/Lower Caves | Entered Data Miner 4712 | -6/Data Miner | Discovered new exit (range 6) 4718 | -6/Data Miner | Met Data Miner 4728 | -6/Data Miner | Learned location of Section 7 (-2) 4728 | -6/Data Miner | Acquired the access code to Warlord's prototype stash 4733 | -6/Data Miner | Received God Mode back door access code from Data Miner 4741 | -6/Data Miner | Identified exit to Proximity Caves 4741 | -6/Data Miner | Entered Proximity Caves 4806 | -5/Proximity Caves | Learned location of Armory (-3) 4855 | -5/Proximity Caves | Discovered exit to Factory (range 12) 4859 | -5/Proximity Caves | Entered Factory 4859 | -5/Factory | Evolved 2 slots: Power x1, Utility x1 4873 | -5/Factory | Identified exit to Upper Caves 4987 | -5/Factory | Build established: Hacker-Scout 5139 | -5/Factory | Entered Upper Caves 5519 | -5/Upper Caves | Crushed by falling debris 5520 | -5/Upper Caves | System corruption reached 10% 5550 | -5/Upper Caves | Lost 3 parts (3u) 5578 | -5/Upper Caves | Discovered new exit (range 8) 5582 | -5/Upper Caves | Entered another Upper Caves area 5591 | -5/Upper Caves | Discovered new exit (range 13) 5609 | -5/Upper Caves | Encountered a Warlord checkpoint 5618 | -5/Upper Caves | Spotted B-75 Beast 5680 | -5/Upper Caves | Learned location of 1 exit from Factory 5692 | -5/Upper Caves | Learned Factory stockpile data 5701 | -5/Upper Caves | Discovered new exit (range 18) 5711 | -5/Upper Caves | Entered Zhirov 5711 | -5/Zhirov | Discovered new exit (range 3) 5717 | -5/Zhirov | Met Zhirov 5722 | -5/Zhirov | Learned location of Quarantine (-3) 5722 | -5/Zhirov | Learned location of Testing (-2) 5722 | -5/Zhirov | Learned location of Command (-1) 5728 | -5/Zhirov | Zhirov requested help retrieving the SGEMP Prototype 5734 | -5/Zhirov | Found Alien Artifact 5734 | -5/Zhirov | Identified Integrated Dissipator 5734 | -5/Zhirov | Installed Integrated Dissipator, increased core heat dissipation (+20) 5741 | -5/Zhirov | Found Alien Artifact 5782 | -5/Zhirov | Entered Proximity Caves 5859 | -4/Proximity Caves | Spotter reported a threat 5989 | -4/Proximity Caves | Build established: Hacker-Sprinter 6029 | -4/Proximity Caves | Spotter reported a threat 6065 | -4/Proximity Caves | Discovered new exit (range 12) 6072 | -4/Proximity Caves | Entered Factory 6072 | -4/Factory | Evolved 2 slots: Utility x2 6073 | -4/Factory | Identified exit to Extension 6246 | -4/Factory | Identified exit to Upper Caves 6322 | -4/Factory | Search patrols dispatched 6602 | -4/Factory | Discovered new exit (range 23) 6618 | -4/Factory | Central database locked down 6681 | -4/Factory | Discovered new exit (range 17) 6808 | -4/Factory | Fabricated Adv. Signal Interpreter? 7055 | -4/Factory | Entered Upper Caves 7057 | -4/Upper Caves | Attracted the attention of an 0b10 checkpoint 7087 | -4/Upper Caves | Learned Research security intel 7223 | -4/Upper Caves | Attracted the attention of an 0b10 base 7381 | -4/Upper Caves | Build established: Hacker-Scout 7515 | -4/Upper Caves | Learned 4 Research zone layouts 7527 | -4/Upper Caves | Discovered new exit (range 12) 7537 | -4/Upper Caves | Identified exit to Upper Caves 7541 | -4/Upper Caves | Entered another Upper Caves area 7734 | -4/Upper Caves | Found Alien Artifact 7734 | -4/Upper Caves | Identified Core Expander 7734 | -4/Upper Caves | Installed Core Expander, added new Weapon slot 7747 | -4/Upper Caves | Discovered new exit (range 20) 7754 | -4/Upper Caves | Identified exit to Warlord 7756 | -4/Upper Caves | Entered Warlord 7795 | -4/Warlord | Discovered new exit (range 24) 8066 | -4/Warlord | Warlord's base attacked by MAIN.C 8086 | -4/Warlord | Found Prototype Energy Gun 8086 | -4/Warlord | Identified Vortex Shotgun 8109 | -4/Warlord | Met Warlord 8115 | -4/Warlord | Opened Warlord's prototype stash 8120 | -4/Warlord | Found Prototype Processor 8120 | -4/Warlord | Identified Exp. Targeting Computer 8124 | -4/Warlord | Found Prototype Hackware 8124 | -4/Warlord | Identified Ghost Barrier 8132 | -4/Warlord | Found Prototype Reactor 8132 | -4/Warlord | Identified Vortex Chain Reactor 8241 | -4/Warlord | Lost 3 allies 8272 | -4/Warlord | Spotted B-86 Titan 8272 | -4/Warlord | Warlord forces counterattacked 8366 | -4/Warlord | Spotted Executioner 8366 | -4/Warlord | Spotted Striker 8409 | -4/Warlord | Lost 15 allies 8526 | -4/Warlord | Opened side exit 8624 | -4/Warlord | Spotted Striker 8628 | -4/Warlord | Spotted Striker 8631 | -4/Warlord | Destroyed Striker 8660 | -4/Warlord | Destroyed 10 combat bots 8665 | -4/Warlord | Lost 4 allies 8669 | -4/Warlord | Spotted Striker 8681 | -4/Warlord | Found Prototype Ballistic Cannon 8681 | -4/Warlord | Identified Hvy. Autocannon 8741 | -4/Warlord | Warlord base infiltrated, sounded retreat 8877 | -4/Warlord | Spotted Striker 8883 | -4/Warlord | Spotted Executioner 8885 | -4/Warlord | Spotted Executioner 8896 | -4/Warlord | P-80 Master assimilated allied J2-3AO(l) 8915 | -4/Warlord | Found Corrupted Prototype Launcher 8915 | -4/Warlord | Identified Chain Missile Launcher 8928 | -4/Warlord | Found Prototype Processor 8928 | -4/Warlord | Identified Exp. Core Analyzer 8935 | -4/Warlord | Found Prototype Slashing Weapon 8935 | -4/Warlord | Identified Particle Cleaver 8939 | -4/Warlord | System corruption reached 10% 8942 | -4/Warlord | Lost 13 allies 8961 | -4/Warlord | Identified exit to Proximity Caves 8961 | -4/Warlord | Entered Proximity Caves 9053 | -3/Proximity Caves | Spotter reported a threat 9065 | -3/Proximity Caves | Spotter reported a threat 9218 | -3/Proximity Caves | Discovered new exit (range 13) 9222 | -3/Proximity Caves | Identified exit to Research 9227 | -3/Proximity Caves | Entered Research 9227 | -3/Research | Evolved 2 slots: Propulsion x1, Utility x1 9228 | -3/Research | Identified exit to Armory 9229 | -3/Research | Identified exit to Research 9229 | -3/Research | Identified exit to Quarantine 9935 | -3/Research | Identified Transdimensional Reconstructor 9935 | -3/Research | Warped through subspace 10005 | -3/Research | Lost 6 parts (1p2n2u1w) 10018 | -3/Research | Entered Quarantine 10047 | -3/Quarantine | Lost 7 parts (1p3n2u1w) 10118 | -3/Quarantine | Found Alien Slashing Weapon 10118 | -3/Quarantine | Identified Sigix Broadsword 10198 | -3/Quarantine | Scanned by Researcher 10231 | -3/Quarantine | Found Alien Artifact 10231 | -3/Quarantine | Identified Terrabomb 10231 | -3/Quarantine | Used Terrabomb 10231 | -3/Quarantine | Spotted Alpha 7 10237 | -3/Quarantine | Found Terrabomb 10237 | -3/Quarantine | Used Terrabomb 10256 | -3/Quarantine | Found Alien Artifact 10256 | -3/Quarantine | Identified Subatomic Replicator 10314 | -3/Quarantine | Found Alien Launcher 10314 | -3/Quarantine | Identified Sigix Terminator 10350 | -3/Quarantine | Found Alien Artifact 10350 | -3/Quarantine | Identified Phase Armor 10381 | -3/Quarantine | Core integrity fell below 50% 10392 | -3/Quarantine | Found Alien Artifact 10392 | -3/Quarantine | Identified Phase Redirector 10407 | -3/Quarantine | Found Alien Energy Cannon 10407 | -3/Quarantine | Identified Core Cannon 10418 | -3/Quarantine | Lost 6 parts (2n3u1w) 10421 | -3/Quarantine | Discovered exit to Research (range 21) 10438 | -3/Quarantine | Core integrity fell below 20% 10442 | -3/Quarantine | Entered Research 10442 | -2/Research | Warlord forces began assault on 0b10 10442 | -2/Research | Evolved 2 slots: Utility x2 10471 | -2/Research | Lost 4 parts (1n2u1w) 10552 | -2/Research | Research machine network offline 10626 | -2/Research | Spotted B-90 Cyclops 10646 | -2/Research | Spotted B-90 Cyclops 10650 | -2/Research | Found Unknown Device 10650 | -2/Research | Identified Quantum Capacitor 10826 | -2/Research | Borebot progress halted 10852 | -2/Research | Spotted Striker 10866 | -2/Research | Met up with Warlord 11115 | -2/Research | Found Unknown Launcher 11115 | -2/Research | Identified Gamma Bomb Array 11126 | -2/Research | Found Prototype Slashing Weapon 11126 | -2/Research | Identified Nanosword 11157 | -2/Research | Borebot progress halted 11186 | -2/Research | Spotted Executioner 11189 | -2/Research | Build established: Scavenger-Scout 11220 | -2/Research | Spotted Executioner 11353 | -2/Research | Spotted Executioner 11353 | -2/Research | Spotted Striker 11371 | -2/Research | Spotted Executioner 11399 | -2/Research | Adv. Hacking Suite fried by hacking feedback 11409 | -2/Research | Spotted Executioner 11424 | -2/Research | Found Prototype Device 11424 | -2/Research | Identified Adv. EM Disruption Field 11426 | -2/Research | Discovered new exit (range 9) 11443 | -2/Research | Identified exit to Testing 11444 | -2/Research | Entered Testing 11462 | -2/Testing | Found Prototype Processor 11462 | -2/Testing | Identified Exp. Signal Interpreter 11494 | -2/Testing | Spotted PY-RIM1BV1HL7 11661 | -2/Testing | Unstable Terrabomb Derivative detonated 11685 | -2/Testing | Found Prototype Protection 11685 | -2/Testing | Identified Med. Regenerative Plating 11689 | -2/Testing | Found Lgt. Regenerative Plating 11710 | -2/Testing | Spotted Fortress 11723 | -2/Testing | Discovered new exit (range 6) 11724 | -2/Testing | Identified exit to Section 7 11724 | -2/Testing | Entered Section 7 11747 | -2/Section 7 | Found Prototype Device 11747 | -2/Section 7 | Identified Adv. Kinecellerator 11781 | -2/Section 7 | Discovered new exit (range 9) 11787 | -2/Section 7 | Found Integrated Dissipator 11787 | -2/Section 7 | Installed Integrated Dissipator, increased core heat dissipation (+20) 11798 | -2/Section 7 | Identified exit to Access 11943 | -2/Section 7 | Build established: Ninja 11983 | -2/Section 7 | Found Alien Artifact 11983 | -2/Section 7 | Identified Integrated Mediator 11983 | -2/Section 7 | Installed Integrated Mediator, increased core attachment efficiency 12064 | -2/Section 7 | Crushed by falling debris 12067 | -2/Section 7 | Found Alien Artifact 12067 | -2/Section 7 | Identified Microwarp Drive 12104 | -2/Section 7 | Spotted S7 Guard 12111 | -2/Section 7 | Found Alien Artifact 12111 | -2/Section 7 | Identified Integrated Reactor 12111 | -2/Section 7 | Installed Integrated Reactor, increased core energy generation (+10) 12125 | -2/Section 7 | Spotted S7 Guard 12139 | -2/Section 7 | Found Alien Artifact 12139 | -2/Section 7 | Identified Integrated Thermoelectric Network 12139 | -2/Section 7 | Installed Integrated Thermoelectric Network, gained heat-energy exchange potential 12146 | -2/Section 7 | Spotted S7 Guard 12150 | -2/Section 7 | Found Alien Artifact 12150 | -2/Section 7 | Identified Core Membrane 12150 | -2/Section 7 | Installed Core Membrane, gained immunity to corruption 12175 | -2/Section 7 | Spotted Alpha 7 12175 | -2/Section 7 | Spotted Alpha 7 12176 | -2/Section 7 | Spotted B-99 Colossus 12194 | -2/Section 7 | Found Integrated Dissipator 12194 | -2/Section 7 | Installed Integrated Dissipator, increased core heat dissipation (+20) 12196 | -2/Section 7 | Found Integrated Dissipator 12196 | -2/Section 7 | Installed Integrated Dissipator, increased core heat dissipation (+20) 12206 | -2/Section 7 | Found Alien Artifact 12206 | -2/Section 7 | Identified LRC Storage 12206 | -2/Section 7 | Installed LRC Storage, increased inventory capacity (+2) 12209 | -2/Section 7 | Found Alien Artifact 12209 | -2/Section 7 | Identified LRC Insulator 12209 | -2/Section 7 | Installed LRC Insulator, gained EM resistance (25) 12210 | -2/Section 7 | Found LRC Insulator 12210 | -2/Section 7 | Installed LRC Insulator, gained EM resistance (25) 12259 | -2/Section 7 | Search patrols dispatched 12263 | -2/Section 7 | Found Alien Reactor 12263 | -2/Section 7 | Identified Matter Drive 12267 | -2/Section 7 | Found Transdimensional Reconstructor 12269 | -2/Section 7 | Found Alien Artifact 12269 | -2/Section 7 | Identified Hpw. Transdimensional Reconstructor 12269 | -2/Section 7 | Warped through subspace 12281 | -2/Section 7 | Warped through subspace 12323 | -2/Section 7 | Spotted Executioner 12324 | -2/Section 7 | Spotted Executioner 12352 | -2/Section 7 | Spotted B-90 Cyclops 12359 | -2/Section 7 | Build established: Sprinter 12365 | -2/Section 7 | Entered Access 12365 | -1/Access | Evolved 2 slots: Utility x2 12474 | -1/Access | Spotted B-99 Colossus 12588 | -1/Access | Spotted B-99 Colossus 12588 | -1/Access | Spotted B-99 Colossus 12620 | -1/Access | Core integrity fell below 50% 12641 | -1/Access | Core integrity fell below 20% 12657 | -1/Access | Destroyed 7 combat bots 12657 | -1/Access | Destroyed by B-74 Champion with Powered Hammer Last Messages --------------- 12647_ Slug penetrates Sealed Heavy Doors. 12647_ Penetrated by Slug. 12647_ Acquired Structural Scanner. 12647_ Structural Scanner destroyed. 12647_ Core Membrane filtered system corruption (1). 12647_ G-73 Enforcer destroyed. 12648_ Slug penetrates Sealed Heavy Doors. 12648_ Penetrated by Slug. 12650_ Slug penetrates Sealed Heavy Doors. 12650_ Penetrated by Slug. 12650_ Imp. Diametric Drive destroyed. 12650_ Penetrated by Slug. 12652_ B-99 Colossus suffers critical hit (Destroy). 12653_ Slug penetrates Sealed Heavy Doors. 12654_ Slug penetrates B-74 Champion. 12654_ Penetrated by Slug. 12654_ Slug penetrates Sealed Heavy Doors. 12657_ Hacking Suite destroyed. 12657_ Core Membrane filtered system corruption (2). [Achievement: I Think I Know What's Going On] Map ----- +----------------------------------------------------+ | ?????????????????????????????????????????? # ##### | | ?????????????????????????????????????????? # | | ???????????????????????????????????? """" / | | ???????????????????????????????????? """" # | | ??????????????????????????????????? "??? # | | ?????????????????????????????????????????? ####### | | ?????????????????????????????????????????? ####### | | ?????????????????????????????????????????????????? | | ?????????????????????????????????????????????????? | | ?????????????????????????????????????????????????? | | ?????????????????????????????????????????????????? | | ?????????????????????????????????????????????????? | | ?????????????????????????????????????????????????? | | ?????????????????????????????????????????????????? | | ?????????????????????????????????????????????????? | | ?????????????????????????????????????????????????? | | ?????????????????????????????????????????????????? | | ?????????????????????????###########?????????????? | | ?????????????????????????###########?????????????? | | ?????????????????????????"" % ##?????????????? | | ??????????????????????????" ## | | ??????????????????????????" ##########+##### | | ??????????????????????????"= | | ??????????????????????????"]%[[ | | ????????????????????????"""=]*=! | | ????????????????????????"@"=%![%! | | ????????????????????????""b=!/=* ####+#?????????? | | ?????????????????????????""sBB= # ?????????? | | ?????????????????????????""*%=] # ?????????????? | | ?????????????????????????########## ?????????????? | | ?????????????????????????########## ?????????????? | | ?????????????????????????????????????????????????? | | ?????????????????????????????????????????????????? | | ?????????????????????????????????????????????????? | | ?????????????????????????????????????????????????? | | ?????????????????????????????????????????????????? | | ?????????????????????????????????????????????????? | | ?????????????????????????????????????????????????? | | ?????????????????????????????????????????????????? | | ?????????????????????????????????????????????????? | | ?????????????????????????????????????????????????? | | ?????????????????????????????????????????????????? | | ?????????????????????????????????????????????????? | | ?????????????????????????????????????????????????? | | ?????????????????????????????????????????????????? | | ?????????????????????????????????????????????????? | | ?????????????????????????????????????????????????? | | ?????????????????????????????????????????????????? | | ?????????????????????????????????????????????????? | | ?????????????????????????????????????????????????? | +----------------------------------------------------+ Best States ------------- Heat Dissipation 148 Energy Generation 55 Energy Capacity 265 Matter Stores 300 Matter Capacity 300 Sight Range 22 Robot Scan Range 18 Terrain Scan Range 24 Terrain Scan Density 210 Cloak Strength 3 Power Amplification 60 Base Temperature (-) 100 Corruption Containment 8 Corruption Block 14 Armor Coverage 800 Resistance: TH 10 Resistance: EM 25 Propulsion Shielding 66 Melee Speed Boost 20 Phase Shifting 15 Evasion (%) 75 Targeting Accuracy 48 Melee Accuracy 24 Recoil Reduction 4 Offensive Hacking 48 Defensive Hacking 32 Item Schematics ----------------- Imp. Sensor Array | -6/Factory | Hacked Combat Drone Bay | -6/Data Miner | Free Lgt. Regenerative Plating | -6/Data Miner | Free Cld. Nuclear Pulse Thruster | -6/Data Miner | Free Imp. Energy Well | -6/Data Miner | Free Cld. Plasma Rifle | -6/Data Miner | Free Centrium Wheel | -6/Data Miner | Free Heavy Servo Lattice | -6/Data Miner | Free Hardcell Cannon | -6/Data Miner | Free Antimissile System | -6/Data Miner | Free Assault Drone Bay | -5/Zhirov | Free Exp. Heat Sink | -5/Zhirov | Free Exp. Optical Array | -5/Zhirov | Free Imp. Arc Thrower | -5/Zhirov | Free Lgt. Neutrino Core | -4/Factory | Scanalyzed Adv. Sensor Array | -4/Factory | Scanalyzed Adv. Signal Interpreter | -4/Factory | Hacked Exp. Propulsion Shielding | -4/Factory | Hacked Imp. Matter Neutralizer | -3/Quarantine | Archive Com. Mass Driver | -3/Quarantine | Archive Imp. Diametric Drive | -2/Testing | Archive Gui. Micro-nuke Launcher | -2/Testing | Archive Robot Schematics ------------------ G-50 Soldier | -6/Data Miner | Free S-27 Virus | -6/Data Miner | Free B-60 Warrior | -6/Data Miner | Free Y-64 Sentinel | -6/Data Miner | Free A-27 Freighter | -3/Quarantine | Archive Fabricated ------------ Adv. Signal Interpreter | x2 | -4/Factory Alien Tech Used ----------------- Integrated Dissipator Core Expander Transdimensional Reconstructor Sigix Broadsword Terrabomb Subatomic Replicator Sigix Terminator Phase Armor Phase Redirector Core Cannon Integrated Mediator Microwarp Drive Integrated Reactor Integrated Thermoelectric Network Core Membrane LRC Storage LRC Insulator Matter Drive High-powered Transdimensional Reconstructor Achievements -------------- Artifact Hunter Deadly Force I Think I Know What's Going On Perfect Aim Reappropriation \\IAMDERELICT Challenges ------------ None Game ------ Seed AntimissileRocketArmor Manual? 0 Play Time 05:04:17 Cumulative 114.5 hours Start 2024.04.12 @ 19:42:24 End 2024.04.13 @ 01:27:50 Sessions 1 Manual Loads 0 Difficulty Rogue Special Mode None Game No. 107 Rogue 107 Adventurer 0 Explorer 0 Win Type - Total 3 Types 2/0/0/1/0/0/0/0/0 Lore% 51 Gallery% 69 Achievement% 52 Wizard Run 0 Options --------- Layout 1 ASCII 0 Keyboard 1 Movement Numpad Keybinds 0 Fullscreen 1 Font 32/SmallcapsGlow Map View 77x35 Zoom Use 0% Tactical HUD 1 Map Filters NONE Filters NONE Steam 1 RUN: 9b02f155-dbd1-4004-87b3-08a528e2f270